fUST/lending_fUST_20250824
["ID","MTS","AMOUNT","RATE_DAILY","PERIOD"]
[381102508,1756043442567,-568.388731,0.0004,30]
[381102509,1756043442576,-192.287821,0.0004,30]
[381102510,1756043442586,-568.388731,0.0004,30]
[381102511,1756043442595,-151.0,0.00040059,30]
[381102512,1756043442604,-151.0,0.00040059,30]
[381102513,1756043442614,-151.0,0.00040059,30]
[381102514,1756043442623,-151.0,0.00040059,30]
[381102515,1756043442633,-151.0,0.00040059,30]
[381102516,1756043442642,-151.0,0.00040059,30]
[381102517,1756043442652,-151.0,0.00040059,30]
[381102518,1756043442662,-250.0,0.00040059,2]
[381102519,1756043442671,-151.0,0.00040059,2]
[381102520,1756043442681,-250.0,0.00040059,2]
[381102521,1756043442691,-151.0,0.00040059,2]
[381102522,1756043442701,-151.0,0.00040059,2]
[381102523,1756043442711,-201.93286099,0.00040059,2]
[381102524,1756043442720,-300.0,0.00040059,2]
[381102525,1756043442730,-250.0,0.00040059,2]
[381102526,1756043442739,-151.0,0.00040059,2]
[381102527,1756043442748,-151.0,0.00040059,2]
[381102528,1756043442758,-300.0,0.00040059,2]
[381102529,1756043442767,-151.0,0.00040059,2]
[381102530,1756043442776,-151.0,0.00040059,2]
[381102531,1756043442785,-250.0,0.00040059,2]
[381102532,1756043442795,-151.0,0.00040059,2]
[381102533,1756043442804,-151.0,0.00040059,2]
[381102534,1756043442813,-221.50235063,0.00040059,2]
[381102535,1756043442822,-267.40561569,0.00040059,2]
[381102536,1756043442832,-250.0,0.00040059,2]
[381102537,1756043442841,-291.24052599,0.00040059,2]
[381102538,1756043442850,-151.0,0.00040059,2]
[381102539,1756043442859,-250.0,0.00040059,2]
[381102540,1756043442868,-151.0,0.00040059,2]
[381102541,1756043442878,-250.0,0.00040059,2]
[381102542,1756043442887,-151.0,0.00040059,2]
[381102543,1756043442897,-250.0,0.00040059,2]
[381102544,1756043442906,-151.0,0.00040059,2]
[381102546,1756043442915,-250.0,0.00040059,2]
[381102548,1756043442924,-151.0,0.00040059,2]
[381102549,1756043442934,-250.0,0.00040059,2]
[381102550,1756043442943,-151.0,0.00040059,2]
[381102551,1756043442953,-1000.0,0.00040059,2]
[381102552,1756043442963,-250.0,0.00040059,2]
[381102553,1756043442972,-1000.0,0.00040059,2]
[381102554,1756043442981,-151.0,0.00040059,2]
[381102555,1756043442991,-250.0,0.00040059,2]
[381102556,1756043443000,-1000.0,0.00040059,2]
[381102557,1756043443010,-151.0,0.00040059,2]
[381102558,1756043443021,-1000.0,0.00040059,2]
[381102559,1756043443030,-681.0,0.00040059,2]
[381102560,1756043443039,-500.0,0.00040059,2]
[381102561,1756043443049,-152.0,0.000401,120]
[381102562,1756043443058,-24995.96,0.000401,14]
[381102563,1756043443068,-500.0,0.00040113,30]
[381102564,1756043443077,-151.0,0.0004026,30]
[381102565,1756043443089,-151.0,0.0004026,30]
[381102566,1756043443099,-151.0,0.0004026,30]
[381102567,1756043443108,-251.9428843,0.00040471,2]
[381102568,1756043443118,-179.69451932,0.00040515,23]
[381102569,1756043443127,-501.03600475,0.00040521,5]
[381102570,1756043443136,-151.47591,0.00040521,30]
[381102572,1756043443146,-151.0,0.00040521,30]
[381102574,1756043443155,-197.860276,0.00040521,30]
[381102576,1756043443165,-151.0,0.00040521,30]
[381102579,1756043443176,-449.1228162,0.00040619,36]
[381102581,1756043443186,-154.552239,0.0004095,20]
[381102583,1756043443195,-2874.80927335,0.00041058,10]
[381102585,1756043443205,-1123.18,0.00041095,120]
[381102586,1756043443214,-168.74,0.000411,14]
[381102589,1756043443226,-500.0,0.00041121,30]
[381102591,1756043443235,-209.40437684,0.00041428,2]
[381102592,1756043443245,-500.0,0.0004192,30]
[381102594,1756043443256,-24995.96,0.00042,14]
[381102596,1756043443266,-720.0,0.00042074,30]
[381102598,1756043443275,-2502.17053052,0.00042242,28]
[381102600,1756043443284,-1123.18,0.00042465,120]
[381102602,1756043443294,-217.15233878,0.00042797,2]
[381102604,1756043443308,-204.00549098,0.00042798,2]
[381102606,1756043443317,-923.24884838,0.00043188,30]
[381102608,1756043443326,-151.0,0.000436,10]
[381102610,1756043443341,-500.0,0.00043638,30]
[381102612,1756043443351,-1123.18,0.00043835,120]
[381102614,1756043443360,-500.0,0.00043866,30]
[381102616,1756043443369,-24995.96,0.000439,14]
[381102618,1756043443381,-449.1228162,0.00044072,43]
[381102620,1756043443389,-225.18697532,0.00044166,2]
[381102622,1756043443399,-152.0,0.000446,120]
[381102624,1756043443409,-500.0,0.00044698,30]
[381102626,1756043443419,-151.0,0.00045,14]
[381102628,1756043443429,-800.51338535,0.00045,14]
[381102630,1756043443439,-2562.38,0.00045,14]
[381102632,1756043443448,-1123.18,0.00045205,120]
[381102634,1756043443457,-500.0,0.00045522,30]
[381102636,1756043443467,-233.51889341,0.00045535,2]
[381102638,1756043443478,-425.34,0.000456,7]
[381102640,1756043443487,-154.552239,0.00045875,7]
[381102642,1756043443497,-2502.17053052,0.00045936,28]
[381102644,1756043443507,-24995.96,0.00046,14]
[381102646,1756043443516,-500.0,0.00046115,30]
[381102648,1756043443526,-864.0,0.00046281,60]
[381102650,1756043443535,-500.0,0.00046313,30]
[381102652,1756043443545,-154.552239,0.00046502,20]
[381102654,1756043443554,-1000.0,0.00046575,120]
[381102657,1756043443564,-1123.18,0.00046575,120]
[381102659,1756043443574,-530.68,0.00046602,120]
[381102661,1756043443584,-150.0,0.00046873,10]
[381102663,1756043443593,-319.68227604,0.00046904,2]
[381102664,1756043443602,-168.0,0.00046943,2]
[381102666,1756043443612,-275.77,0.000471,7]
[381102668,1756043443621,-2313.07,0.000471,14]
[381102670,1756043443631,-381.55,0.000471,7]
[381102672,1756043443640,-168.0,0.00047175,2]
[381102674,1756043443650,-168.0,0.00047241,2]
[381102675,1756043443659,-167.11243922,0.00047278,120]
[381102676,1756043443668,-24995.96,0.000473,14]
[381102677,1756043443678,-2562.38,0.000473,14]
[381102678,1756043443687,-167.998584,0.00047323,2]
[381102679,1756043443698,-426.70013579,0.00047378,2]
[381102680,1756043443707,-1705.09374262,0.00047378,2]
[381102681,1756043443716,-3712.79126155,0.00047378,2]
[381102682,1756043443725,-395.58745728,0.00047378,2]
[381102718,1756043444119,-445.45037065,0.00047378,2]
[381102720,1756043444130,-3360.78716041,0.00047378,2]
[381102722,1756043444141,-975.85020564,0.00047378,2]
[381102724,1756043444151,-3903.40082257,0.00047378,2]
[381102726,1756043444161,-2259.82439939,0.00047378,2]
[381102728,1756043444170,-241.58503351,0.00047378,2]
[381102730,1756043444179,-965.37379391,0.00047378,2]
[381102732,1756043444189,-250.0,0.00047421,10]
[381102734,1756043444198,-168.0,0.00047443,7]
[381102736,1756043444209,-425.34,0.000475,7]
[381102739,1756043444219,-449.1228162,0.00047525,50]
[381102741,1756043444229,-168.0,0.00047558,7]
[381102743,1756043444239,-6000.0,0.000479,120]
[381102745,1756043444249,-168.0,0.00047908,2]
[381102746,1756043444258,-1123.18,0.00047945,120]
[381102748,1756043444268,-400.44851005,0.00047968,10]
[381102749,1756043444277,-55681.0700079,0.00048,120]
[381102750,1756043444287,-2120.26,0.00048,14]
[381102751,1756043444296,-500.0,0.00048028,30]
[381102752,1756043444306,-168.0,0.00048236,120]
[381102753,1756043444315,-63.94819435,0.00048256,2]
[381102754,1756043444327,-104.05180565,0.00048256,2]
[381102755,1756043444341,-168.0,0.00048395,2]
[381102756,1756043444351,-168.0,0.000485,7]
[381102757,1756043444360,-647.66914228,0.00048834,8]
[381102758,1756043444370,-500.0,0.0004904,60]
[381102759,1756043444380,-152.0,0.000491,120]
[381102760,1756043444390,-24995.96,0.000491,14]
[381102761,1756043444400,-392.25,0.00049107,14]
[381102762,1756043444410,-168.0,0.00049147,2]
[381102763,1756043444420,-293.673638,0.00049158,2]
[381102764,1756043444429,-168.0,0.00049212,30]
[381102765,1756043444440,-2874.80927335,0.00049215,10]
[381102766,1756043444449,-154.552239,0.00049239,15]
[381102767,1756043444460,-973.0,0.00049246,2]
[381102768,1756043444469,-2155.0,0.00049246,2]
[381102769,1756043444479,-637.0,0.00049246,2]
[381102770,1756043444488,-408.0,0.00049246,2]
[381102771,1756043444499,-289.974,0.00049246,2]
[381102772,1756043444509,-150.352,0.00049246,2]
[381102773,1756043444519,-449.1228162,0.00049251,54]
[381102774,1756043444528,-500.0,0.00049271,30]
[381102775,1756043444539,-151.0,0.00049315,120]
[381102776,1756043444549,-151.0,0.00049315,120]
[381102777,1756043444558,-151.0,0.00049315,30]
[381102778,1756043444567,-151.0,0.00049315,120]
[381102779,1756043444577,-151.0,0.00049315,120]
[381102780,1756043444586,-151.0,0.00049315,120]
[381102781,1756043444595,-151.0,0.00049315,120]
[381102782,1756043444606,-151.0,0.00049315,120]
[381102783,1756043444615,-151.0,0.00049315,120]
[381102784,1756043444625,-151.0,0.00049315,120]
[381102785,1756043444634,-151.0,0.00049315,120]
[381102786,1756043444644,-151.0,0.00049315,120]
[381102787,1756043444654,-151.0,0.00049315,120]
[381102788,1756043444663,-151.0,0.00049315,120]
[381102789,1756043444672,-151.0,0.00049315,120]
[381102790,1756043444682,-151.0,0.00049315,120]
[381102791,1756043444692,-151.0,0.00049315,120]
[381102792,1756043444701,-1123.18,0.00049315,120]
[381102793,1756043444711,-175.009375,0.00049315,120]
[381102794,1756043444720,-175.009375,0.00049315,120]
[381102795,1756043444730,-151.0,0.00049315,120]
[381102796,1756043444740,-175.009375,0.00049315,120]
[381102797,1756043444750,-151.0,0.00049315,120]
[381102798,1756043444760,-175.009375,0.00049315,120]
[381102799,1756043444770,-151.0,0.00049315,120]
[381102800,1756043444779,-151.0,0.00049315,120]
[381102801,1756043444789,-151.0,0.00049315,120]
[381102802,1756043444799,-151.0,0.00049315,120]
[381102803,1756043444808,-151.0,0.00049315,120]
[381102804,1756043444817,-151.0,0.00049315,120]
[381102805,1756043444827,-151.0,0.00049315,120]
[381102806,1756043444836,-257.616348,0.00049315,120]
[381102807,1756043444846,-151.0,0.00049315,120]
[381102808,1756043444856,-151.0,0.00049315,120]
[381102809,1756043444866,-151.0,0.00049315,120]
[381102810,1756043444875,-297.696646,0.00049315,120]
[381102811,1756043444885,-297.696646,0.00049315,120]
[381102812,1756043444895,-151.0,0.00049315,120]
[381102813,1756043444904,-297.696646,0.00049315,120]
[381102814,1756043444915,-151.0,0.00049315,120]
[381102815,1756043444924,-297.696646,0.00049315,120]
[381102816,1756043444933,-151.0,0.00049315,120]
[381102817,1756043444943,-292.791015,0.00049315,120]
[381102818,1756043444953,-151.0,0.00049315,30]
[381102819,1756043444963,-151.0,0.00049315,30]
[381102820,1756043444972,-151.0,0.00049315,30]
[381102821,1756043444982,-151.0,0.00049315,120]
[381102822,1756043444992,-157.940769,0.00049315,120]
[381102823,1756043445003,-151.0,0.00049315,120]
[381102824,1756043445013,-157.940769,0.00049315,120]
[381102825,1756043445022,-157.940769,0.00049315,120]
[381102826,1756043445032,-157.940769,0.00049315,120]
[381102827,1756043445042,-7504.31,0.00049315,120]
[381102828,1756043445051,-7504.31,0.00049315,120]
[381102829,1756043445061,-7504.31,0.00049315,120]
[381102830,1756043445070,-7504.31,0.00049315,120]
[381102831,1756043445080,-7504.31,0.00049315,120]
[381102832,1756043445090,-7504.31,0.00049315,120]
[381102833,1756043445100,-7504.31,0.00049315,120]
[381102834,1756043445110,-7504.31,0.00049315,120]
[381102835,1756043445120,-7504.31,0.00049315,120]
[381102836,1756043445130,-7504.31,0.00049315,120]
[381102837,1756043445140,-7504.31,0.00049315,120]
[381102838,1756043445149,-7504.31,0.00049315,120]
[381102839,1756043445159,-7504.31,0.00049315,120]
[381102840,1756043445169,-7504.31,0.00049315,120]
[381102841,1756043445179,-7504.31,0.00049315,120]
[381102842,1756043445189,-7504.31,0.00049315,120]
[381102843,1756043445198,-7504.31,0.00049315,120]
[381102844,1756043445208,-7504.31,0.00049315,120]
[381102845,1756043445218,-7504.31,0.00049315,120]
[381102846,1756043445228,-7504.31,0.00049315,120]
[381102847,1756043445237,-7504.31,0.00049315,120]
[381102848,1756043445247,-7504.31,0.00049315,120]
[381102849,1756043445256,-7504.31,0.00049315,120]
[381102850,1756043445266,-7504.5,0.00049315,120]
[381102851,1756043445275,-151.0,0.00049315,15]
[381102852,1756043445284,-151.0,0.00049315,15]
[381102853,1756043445295,-151.0,0.00049315,120]
[381102854,1756043445311,-151.0,0.00049315,120]
[381102855,1756043445321,-214.069436,0.00049315,120]
[381102856,1756043445331,-151.0,0.00049315,120]
[381102857,1756043445345,-214.069436,0.00049315,120]
[381102858,1756043445356,-568.388731,0.00049315,120]
[381102859,1756043445365,-151.0,0.00049315,120]
[381102860,1756043445375,-214.069436,0.00049315,120]
[381102861,1756043445384,-568.388731,0.00049315,120]
[381102862,1756043445394,-151.0,0.00049315,120]
[381102863,1756043445404,-214.069436,0.00049315,120]
[381102864,1756043445414,-568.388731,0.00049315,120]
[381102865,1756043445424,-568.388731,0.00049315,120]
[381102866,1756043445433,-609.0,0.00049315,120]
[381102867,1756043445442,-2200.0,0.00049356,30]
[381102868,1756043445452,-378748.97390828,0.000494,120]
[381102869,1756043445462,-151.0,0.000494,120]
[381102870,1756043445471,-151.0,0.000494,120]
[381102871,1756043445483,-220.246433,0.000494,30]
[381102872,1756043445495,-151.0,0.000494,120]
[381102873,1756043445696,-151.0,0.000494,120]
[381102874,1756043445718,-151.0,0.000494,120]
[381102875,1756043445728,-151.0,0.000494,120]
[381102876,1756043445737,-151.0,0.000494,120]
[381102877,1756043445746,-151.0,0.000494,120]
[381102878,1756043445755,-151.0,0.000494,120]
[381102879,1756043445766,-151.0,0.000494,120]
[381102880,1756043445775,-151.0,0.000494,120]
[381102881,1756043445784,-247.075935,0.000494,120]
[381102882,1756043445794,-151.0,0.000494,120]
[381102883,1756043445803,-151.0,0.000494,120]
[381102884,1756043445812,-151.0,0.000494,120]
[381102885,1756043445821,-175.009375,0.000494,120]
[381102886,1756043445830,-175.009375,0.000494,120]
[381102887,1756043445839,-175.009375,0.000494,120]
[381102888,1756043445849,-151.0,0.000494,120]
[381102889,1756043445858,-175.009375,0.000494,120]
[381102890,1756043445868,-151.0,0.000494,120]
[381102891,1756043445877,-151.0,0.000494,120]
[381102892,1756043445886,-151.0,0.000494,120]
[381102894,1756043445895,-151.0,0.000494,120]
[381102895,1756043445904,-151.0,0.000494,120]
[381102896,1756043445913,-151.0,0.000494,120]
[381102897,1756043445922,-151.0,0.000494,120]
[381102898,1756043445931,-151.0,0.000494,120]
[381102899,1756043445940,-151.0,0.000494,120]
[381102901,1756043445951,-297.696646,0.000494,120]
[381102902,1756043445960,-297.696646,0.000494,120]
[381102903,1756043445969,-151.0,0.000494,120]
[381102904,1756043445979,-297.696646,0.000494,120]
[381102905,1756043445988,-151.0,0.000494,120]
[381102906,1756043445998,-297.696646,0.000494,120]
[381102907,1756043446007,-151.0,0.000494,120]
[381102908,1756043446017,-151.0,0.000494,30]
[381102909,1756043446026,-151.0,0.000494,30]
[381102910,1756043446036,-151.0,0.000494,30]
[381102911,1756043446046,-262.152399,0.000494,120]
[381102912,1756043446055,-157.940769,0.000494,120]
[381102913,1756043446065,-157.940769,0.000494,120]
[381102914,1756043446074,-157.940769,0.000494,120]
[381102915,1756043446083,-157.940769,0.000494,120]
[381102916,1756043446092,-151.0,0.000494,15]
[381102917,1756043446102,-151.0,0.000494,15]
[381102919,1756043446112,-151.0,0.000494,120]
[381102921,1756043446121,-151.0,0.000494,120]
[381102923,1756043446131,-214.069436,0.000494,120]
[381102925,1756043446140,-151.0,0.000494,120]
[381102927,1756043446150,-214.069436,0.000494,120]
[381102929,1756043446159,-568.388731,0.000494,120]
[381102931,1756043446169,-151.0,0.000494,120]
[381102933,1756043446178,-214.069436,0.000494,120]
[381102935,1756043446187,-568.388731,0.000494,120]
[381102936,1756043446196,-151.0,0.000494,120]
[381102937,1756043446205,-214.069436,0.000494,120]
[381102938,1756043446215,-568.388731,0.000494,120]
[381102939,1756043446223,-568.388731,0.000494,120]
[381102940,1756043446233,-168.0,0.00049407,2]
[381102941,1756043446243,-1001.46916508,0.00049416,15]
[381102942,1756043446253,-10000.0,0.000495,120]
[381102943,1756043446263,-168.0,0.00049555,2]
[381102944,1756043446272,-168.0,0.00049559,2]
[381102945,1756043446281,-1000.0,0.00049589,30]
[381102946,1756043446290,-2502.17053052,0.0004963,28]
[381102947,1756043446300,-2279.1655838,0.00049631,120]
[381102948,1756043446309,-500.0,0.00049647,30]
[381102949,1756043446319,-2562.38,0.000497,14]
[381102950,1756043446328,-167.11243922,0.00049753,120]
[381102951,1756043446342,-168.0,0.00049781,7]
[381102952,1756043446351,-168.0,0.00049781,2]
[381102953,1756043446360,-425.34,0.000498,7]
[381102954,1756043446370,-154.552239,0.000499,120]
[381102955,1756043446379,-166.13416733,0.00049917,30]
[381102956,1756043446389,-168.0,0.00049963,2]
[381102957,1756043446398,-87811.26035017,0.0005,120]
[381102958,1756043446407,-168.75,0.0005,14]
[381102959,1756043446417,-232.42214577,0.0005,7]
[381102960,1756043446428,-500.0,0.00050136,60]
[381102961,1756043446438,-154.552239,0.0005015,120]
[381102962,1756043446447,-500.0,0.0005018,60]
[381102964,1756043446459,-154.552239,0.000504,120]
[381102966,1756043446468,-154.0885349,0.00050411,30]
[381102968,1756043446477,-306.0,0.00050411,30]
[381102970,1756043446486,-306.0,0.00050411,30]
[381102972,1756043446495,-153.0,0.00050411,30]
[381102974,1756043446505,-10000.0,0.000505,120]
[381102977,1756043446515,-23231.1372717,0.000505,120]
[381102979,1756043446524,-168.0,0.0005052,2]
[381102981,1756043446534,-955.84440645,0.00050556,60]
[381102983,1756043446543,-1129.32551782,0.00050684,120]
[381102985,1756043446553,-1123.18,0.00050684,120]
[381102986,1756043446562,-500.0,0.00050684,120]
[381102988,1756043446571,-493.90997104,0.00050684,120]
[381102990,1756043446580,-247.3189471,0.00050685,30]
[381102992,1756043446590,-153.0,0.00050685,30]
[381102995,1756043446600,-161.0055628,0.00050685,30]
[381102997,1756043446609,-1053.4701353,0.00050685,30]
[381102999,1756043446619,-160.4463284,0.00050685,30]
[381103001,1756043446628,-161.0055628,0.00050685,30]
[381103002,1756043446637,-154.552239,0.00050779,7]
[381103004,1756043446646,-400.0,0.0005089,120]
[381103006,1756043446656,-34236.39115357,0.000509,120]
[381103008,1756043446665,-150.0,0.000509,10]
[381103010,1756043446675,-1000.0,0.00050909,90]
[381103012,1756043446684,-1000.0,0.00050959,30]
[381103014,1756043446694,-449.1228162,0.00050978,58]
[381103016,1756043446703,-1000.0,0.00050999,120]
[381103018,1756043446712,-6262.61,0.00051,120]
[381103020,1756043446722,-1000.0,0.00051,120]
[381103022,1756043446731,-24995.96,0.00051,14]
[381103023,1756043446741,-500.0,0.00051232,60]
[381103024,1756043446750,-1000.0,0.00051406,2]
[381103025,1756043446760,-250.0,0.00051448,10]
[381103027,1756043446769,-961.96777229,0.0005149,120]
[381103029,1756043446778,-10000.0,0.000515,120]
[381103031,1756043446787,-200.0,0.00051505,60]
[381103033,1756043446797,-2217.01235372,0.00051506,61]
[381103035,1756043446806,-480.0,0.00051506,120]
[381103037,1756043446816,-480.0,0.00051506,120]
[381103039,1756043446825,-480.0,0.00051506,120]
[381103041,1756043446834,-480.0,0.00051506,120]
[381103043,1756043446843,-480.0,0.00051506,120]
[381103045,1756043446852,-480.0,0.00051506,30]
[381103047,1756043446861,-480.0,0.00051506,120]
[381103049,1756043446870,-480.0,0.00051506,120]
[381103051,1756043446879,-480.0,0.00051506,120]
[381103053,1756043446888,-277.72904534,0.00051506,120]
[381103055,1756043446897,-480.0,0.00051506,120]
[381103057,1756043446908,-480.0,0.00051506,120]
[381103059,1756043446917,-480.0,0.00051506,120]
[381103061,1756043446926,-480.0,0.00051506,120]
[381103063,1756043446935,-480.0,0.00051506,120]
[381103065,1756043446947,-2312.32,0.00051506,120]
[381103067,1756043446956,-480.0,0.00051506,120]
[381103069,1756043446965,-480.0,0.00051506,120]
[381103071,1756043446975,-480.0,0.00051506,120]
[381103073,1756043446983,-480.0,0.00051506,120]
[381103075,1756043446992,-480.0,0.00051506,120]
[381103077,1756043447002,-1014.78,0.00051506,120]
[381103079,1756043447012,-480.0,0.00051506,120]
[381103081,1756043447021,-480.0,0.00051506,120]
[381103083,1756043447030,-480.0,0.00051506,120]
[381103085,1756043447039,-512.99,0.00051506,120]
[381103087,1756043447049,-630.65,0.00051506,120]
[381103089,1756043447058,-480.0,0.00051506,120]
[381103091,1756043447067,-480.0,0.00051506,120]
[381103093,1756043447077,-480.0,0.00051506,120]
[381103095,1756043447086,-1748.16,0.00051506,120]
[381103097,1756043447095,-480.0,0.00051506,120]
[381103099,1756043447104,-533.94988374,0.00051506,120]
[381103101,1756043447113,-480.0,0.00051506,120]
[381103103,1756043447122,-911.54,0.00051506,120]
[381103105,1756043447132,-480.0,0.00051506,120]
[381103107,1756043447140,-480.0,0.00051506,120]
[381103109,1756043447150,-480.0,0.00051506,120]
[381103111,1756043447159,-2118.42,0.00051506,120]
[381103113,1756043447169,-480.0,0.00051506,120]
[381103115,1756043447178,-480.0,0.00051506,120]
[381103117,1756043447187,-1747.19,0.00051506,120]
[381103119,1756043447195,-480.0,0.00051506,120]
[381103121,1756043447205,-1433.15,0.00051506,120]
[381103123,1756043447214,-480.0,0.00051506,120]
[381103125,1756043447223,-480.52137476,0.00051506,120]
[381103127,1756043447233,-480.0,0.00051506,120]
[381103129,1756043447242,-480.0,0.00051506,120]
[381103131,1756043447252,-575.21,0.00051506,120]
[381103133,1756043447261,-480.0,0.00051506,120]
[381103135,1756043447270,-480.0,0.00051506,120]
[381103137,1756043447280,-480.0,0.00051506,120]
[381103139,1756043447289,-480.0,0.00051506,120]
[381103141,1756043447298,-637.1,0.00051506,120]
[381103143,1756043447307,-480.0,0.00051506,120]
[381103145,1756043447317,-480.0,0.00051506,120]
[381103147,1756043447326,-480.0,0.00051506,120]
[381103149,1756043447339,-2033.6,0.00051506,120]
[381103151,1756043447348,-480.0,0.00051506,30]
[381103153,1756043447357,-480.0,0.00051506,120]
[381103155,1756043447367,-480.0,0.00051506,120]
[381103157,1756043447376,-480.0,0.00051506,120]
[381103159,1756043447386,-480.0,0.00051506,120]
[381103161,1756043447395,-480.0,0.00051506,120]
[381103163,1756043447404,-659.94,0.00051506,120]
[381103165,1756043447413,-520.63,0.00051506,120]
[381103167,1756043447422,-480.0,0.00051506,120]
[381103169,1756043447432,-480.0,0.00051506,120]
[381103171,1756043447441,-480.0,0.00051506,120]
[381103173,1756043447450,-480.0,0.00051506,120]
[381103175,1756043447460,-480.0,0.00051506,120]
[381103177,1756043447469,-480.0,0.00051506,120]
[381103179,1756043447478,-750.56,0.00051506,120]
[381103181,1756043447488,-1261.72,0.00051506,120]
[381103183,1756043447497,-480.0,0.00051506,120]
[381103185,1756043447507,-1420.64,0.00051506,120]
[381103187,1756043447517,-691.27,0.00051506,120]
[381103189,1756043447526,-480.0,0.00051506,120]
[381103191,1756043447536,-480.0,0.00051506,120]
[381103193,1756043447545,-480.0,0.00051506,120]
[381103195,1756043447555,-480.0,0.00051506,120]
[381103197,1756043447564,-710.97,0.00051506,120]
[381103199,1756043447573,-480.0,0.00051506,120]
[381103201,1756043447583,-1451.84,0.00051506,120]
[381103203,1756043447593,-480.0,0.00051506,120]
[381103205,1756043447603,-480.0,0.00051506,120]
[381103207,1756043447612,-480.0,0.00051506,120]
[381103209,1756043447622,-480.0,0.00051506,120]
[381103211,1756043447631,-480.0,0.00051506,90]
[381103213,1756043447641,-480.0,0.00051506,120]
[381103215,1756043447650,-480.0,0.00051506,120]
[381103217,1756043447660,-480.0,0.00051506,120]
[381103219,1756043447669,-480.0,0.00051506,120]
[381103221,1756043447678,-480.0,0.00051506,120]
[381103223,1756043447688,-480.0,0.00051506,120]
[381103225,1756043447697,-450.63646166,0.00051506,120]
[381103227,1756043447706,-480.0,0.00051506,120]
[381103229,1756043447716,-834.33,0.00051506,120]
[381103231,1756043447725,-480.0,0.00051506,120]
[381103233,1756043447734,-480.0,0.00051506,120]
[381103235,1756043447743,-480.0,0.00051506,120]
[381103237,1756043447753,-480.0,0.00051506,120]
[381103239,1756043447762,-480.0,0.00051506,120]
[381103241,1756043447772,-586.93,0.00051506,120]
[381103243,1756043447781,-480.0,0.00051506,120]
[381103245,1756043447790,-480.0,0.00051506,120]
[381103247,1756043447800,-480.0,0.00051506,120]
[381103249,1756043447809,-480.0,0.00051506,120]
[381103251,1756043447818,-1330.41,0.00051506,120]
[381103253,1756043447827,-480.0,0.00051506,120]
[381103255,1756043447837,-480.0,0.00051506,120]
[381103257,1756043447846,-480.0,0.00051506,120]
[381103259,1756043447855,-480.0,0.00051506,120]
[381103261,1756043447864,-480.0,0.00051506,120]
[381103263,1756043447874,-261.93276681,0.00051506,120]
[381103265,1756043447884,-480.0,0.00051506,120]
[381103267,1756043447893,-480.0,0.00051506,120]
[381103269,1756043447902,-480.0,0.00051506,120]
[381103271,1756043447911,-480.0,0.00051506,120]
[381103273,1756043447921,-637.31,0.00051506,120]
[381103275,1756043447930,-729.08,0.00051506,120]
[381103277,1756043447939,-480.0,0.00051506,120]
[381103279,1756043447948,-516.93,0.00051506,120]